bitfinex/quotes_SOLUSD_20251117
["timestamp","ask_amount","ask_price","bid_price","bid_amount"]
[1763394396854,8.00867292,137.71,137.66,7.31867292]
[1763394397055,8.00867292,137.71,137.65,7.41867292]
[1763394397056,7.31867292,137.7,137.65,7.41867292]
[1763394397355,0.69,137.7,137.66,7.31867292]
[1763394397537,0.69,137.72,137.69,7.31867292]
[1763394397738,0.69,137.72,137.7,7.31867292]
[1763394398073,0.69,137.74,137.71,7.31867292]
[1763394398251,11.77867292,137.77,137.72,7.31867292]
[1763394398567,0.69,137.77,137.76,7.31867292]
[1763394398750,0.69,137.77,137.7,18.12096]
[1763394399068,0.69,137.77,137.75,7.31867292]
[1763394399252,0.69,137.77,137.76,7.31867292]
[1763394399971,0.69,137.77,137.7,18.12096]
[1763394400569,0.69,137.77,137.71,18.12096]
[1763394400770,0.69,137.77,137.74,7.31867292]
[1763394401372,7.31867292,137.79,137.71,18.12096]
[1763394401373,5.15,137.82,137.76,7.31867292]
[1763394401666,0.69,137.81,137.78,7.31867292]
[1763394402070,0.69,137.81,137.79,7.31867292]
[1763394402577,18.81096,137.84,137.8,7.31867292]
[1763394402876,0.69,137.83,137.8,7.31867292]
[1763394403055,0.69,137.83,137.74,22.58096]
[1763394403056,0.69,137.83,137.79,7.31867292]
[1763394403257,0.69,137.83,137.8,7.31867292]
[1763394403464,0.69,137.83,137.81,7.31867292]
[1763394403648,0.69,137.83,137.82,7.31867292]
[1763394403976,0.69,137.83,137.81,7.31867292]
[1763394404152,0.69,137.83,137.82,7.31867292]
[1763394404572,0.69,137.83,137.81,7.31867292]
[1763394404880,0.69,137.86,137.82,12.73900769]
[1763394405050,18.81096,137.86,137.83,12.73900769]
[1763394405251,18.81096,137.86,137.78,9.78882769]
[1763394405252,18.81096,137.86,137.84,12.73900769]
[1763394405774,0.69,137.85,137.82,12.73900769]
[1763394406567,0.69,137.85,137.78,18.12096]
[1763394406782,0.69,137.85,137.81,12.73900769]
[1763394406942,12.73900769,137.83,137.78,12.73900769]
[1763394407463,13.42900769,137.82,137.77,12.73900769]
[1763394407973,0.69,137.81,137.78,12.73900769]
[1763394408482,0.69,137.84,137.8,12.73900769]
[1763394408677,18.12096,137.83,137.82,12.73900769]
[1763394408854,0.69,137.84,137.81,12.73900769]
[1763394409059,0.69,137.83,137.8,12.73900769]
[1763394409486,0.69,137.83,137.81,12.73900769]
[1763394409797,0.69,137.83,137.8,12.73900769]
[1763394409982,0.69,137.83,137.79,12.73900769]
[1763394410179,0.69,137.83,137.8,12.73900769]
[1763394410370,0.69,137.83,137.81,12.73900769]
[1763394410696,0.69,137.84,137.82,12.73900769]
[1763394411059,0.69,137.84,137.78,18.12096]
[1763394411060,0.69,137.84,137.81,12.73900769]
[1763394411269,0.69,137.84,137.82,12.73900769]
[1763394411871,0.69,137.84,137.81,12.73900769]
[1763394412081,0.69,137.84,137.8,12.73900769]
[1763394412484,13.42900769,137.84,137.79,12.73900769]
[1763394412789,13.42900769,137.84,137.8,12.73900769]
[1763394412790,0.69,137.84,137.8,12.73900769]
[1763394412986,0.69,137.83,137.8,12.73900769]
[1763394413502,0.69,137.83,137.77,4.46]
[1763394413503,0.69,137.83,137.81,12.73900769]
[1763394413987,0.69,137.83,137.82,12.73900769]
[1763394414198,0.69,137.83,137.81,12.73900769]
[1763394414362,0.69,137.83,137.8,12.73900769]
[1763394414561,0.69,137.83,137.77,4.46]
[1763394414562,0.69,137.83,137.79,12.73900769]
[1763394415064,0.69,137.83,137.8,12.73900769]
[1763394415264,0.69,137.83,137.79,12.73900769]
[1763394415464,0.69,137.83,137.8,12.73900769]
[1763394415898,18.12096,137.86,137.82,12.73900769]
[1763394416112,0.69,137.85,137.82,12.73900769]
[1763394416602,0.69,137.85,137.81,12.73900769]
[1763394416763,22.52783538,137.84,137.77,4.46]
[1763394416971,12.73900769,137.83,137.78,12.73900769]
[1763394417176,12.73900769,137.81,137.7,12.73900769]
[1763394417386,13.42900769,137.8,137.75,12.73900769]
[1763394417593,13.42900769,137.8,137.76,12.73900769]
[1763394417594,0.69,137.8,137.76,12.73900769]
[1763394417764,0.69,137.79,137.73,18.12096]
[1763394417965,0.69,137.79,137.76,12.73900769]
[1763394418898,0.69,137.79,137.75,12.73900769]
[1763394419780,0.69,137.79,137.74,12.73900769]
[1763394420164,9.78882769,137.78,137.7,18.12096]
[1763394420405,12.73900769,137.76,137.71,12.73900769]
[1763394420569,0.69,137.78,137.75,12.73900769]
[1763394420897,0.69,137.77,137.75,12.73900769]
[1763394421195,0.69,137.77,137.76,12.73900769]
[1763394421405,0.69,137.81,137.76,12.73900769]
[1763394421692,0.69,137.81,137.79,12.73900769]
[1763394421904,0.69,137.81,137.78,12.73900769]
[1763394422087,0.69,137.81,137.77,12.73900769]
[1763394422264,0.69,137.81,137.79,12.73900769]
[1763394422701,4.46,137.83,137.79,12.73900769]
[1763394422870,0.69,137.82,137.8,12.73900769]
[1763394423065,4.46,137.87,137.81,12.73900769]
[1763394423269,4.46,137.87,137.85,12.73900769]
[1763394423270,0.69,137.87,137.85,12.73900769]
[1763394423480,0.69,137.87,137.84,12.73900769]
[1763394423772,0.69,137.87,137.81,4.46]
[1763394423997,18.81096,137.87,137.7,12.73900769]
[1763394424209,12.73900769,137.83,137.77,12.73900769]
[1763394424497,12.73900769,137.83,137.71,4.46]
[1763394424498,12.73900769,137.78,137.72,12.73900769]
[1763394424685,0.69,137.83,137.77,12.73900769]
[1763394424897,0.69,137.88,137.82,12.73900769]
[1763394425070,0.69,137.87,137.8,18.12096]
[1763394425264,0.69,137.87,137.83,12.73900769]
[1763394425583,31.54996769,137.87,137.82,12.73900769]
[1763394425794,5.72583704,137.94,137.85,12.73900769]
[1763394425984,0.69,137.89,137.8,40.64879538]
[1763394426297,0.69,137.89,137.85,12.73900769]
[1763394426507,0.69,137.89,137.84,4.46]
[1763394426691,13.42900769,137.89,137.84,12.73900769]
[1763394426881,13.42900769,137.89,137.81,22.58096]
[1763394426882,12.73900769,137.87,137.81,17.19900769]
[1763394427076,0.7,137.86,137.8,4.46]
[1763394427273,0.7,137.86,137.82,12.73900769]
[1763394427469,18.12096,137.88,137.83,12.73900769]
[1763394427806,18.82096,137.88,137.85,12.73900769]
[1763394428010,18.12096,137.89,137.86,12.73900769]
[1763394428169,12.73900769,137.94,137.88,12.73900769]
[1763394428546,18.12096,137.92,137.89,12.73900769]
[1763394428689,22.52783538,137.92,137.86,4.46]
[1763394429002,0.7,137.91,137.87,12.73900769]
[1763394429206,12.73900769,137.94,137.89,12.73900769]
[1763394429405,0.7,137.93,137.89,12.73900769]
[1763394429899,18.82096,137.93,137.88,12.73900769]
[1763394430409,23.22783538,137.92,137.86,12.73900769]
[1763394430710,10.48882769,137.92,137.86,12.73900769]
[1763394430885,13.43900769,137.91,137.86,12.73900769]
[1763394431199,31.55996769,137.91,137.85,17.19900769]
[1763394431374,0.7,137.9,137.86,12.73900769]
[1763394432002,0.7,137.9,137.85,4.46]
[1763394432320,0.7,137.93,137.89,12.73900769]
[1763394432816,0.7,137.96,137.92,12.73900769]
[1763394432986,12.73900769,137.99,137.91,4.46]
[1763394433318,12.73900769,137.99,137.81,0.72563674]
[1763394433319,18.12096,137.95,137.86,4.46]
[1763394433614,0.7,137.98,137.94,12.73900769]
[1763394433816,13.43900769,137.97,137.92,17.19900769]
[1763394434018,18.12096,137.96,137.92,4.46]
[1763394434196,18.82096,137.96,137.93,12.73900769]
[1763394434397,0.7,137.95,137.92,12.73900769]
[1763394436507,12.73900769,137.93,137.87,12.73900769]
[1763394436712,12.73900769,137.91,137.86,17.19900769]
[1763394436919,0.7,137.92,137.86,17.19900769]
[1763394437216,12.73900769,137.91,137.86,17.19900769]
[1763394437590,12.73900769,137.91,137.79,21.49112954]
[1763394437591,12.73900769,137.87,137.71,25.4157287]
[1763394437794,12.73900769,137.84,137.7,13.4652241]
[1763394438010,12.73900769,137.83,137.78,12.73900769]
[1763394438393,0.69,137.82,137.76,4.46]
[1763394438591,0.69,137.82,137.77,12.73900769]
[1763394438921,0.69,137.82,137.78,12.73900769]
[1763394439294,13.42900769,137.82,137.77,12.73900769]
[1763394439489,12.73900769,137.81,137.75,12.73900769]
[1763394439689,12.73900769,137.8,137.75,12.73900769]
[1763394440001,0.69,137.8,137.76,12.73900769]
[1763394440192,12.73900769,137.78,137.66,21.75320564]
[1763394440405,0.69,137.78,137.74,12.73900769]
[1763394440690,0.69,137.78,137.67,4.46]
[1763394440691,0.69,137.77,137.72,4.46]
[1763394440908,13.42900769,137.77,137.72,4.46]
[1763394441193,18.12096,137.78,137.72,4.46]
[1763394441398,18.12096,137.78,137.74,12.73900769]
[1763394441598,0.69,137.8,137.76,12.73900769]
[1763394442201,12.73900769,137.8,137.75,12.73900769]
[1763394442402,12.73900769,137.81,137.75,12.73900769]
[1763394442707,17.19900769,137.82,137.74,0.69]
[1763394442898,17.19900769,137.82,137.76,12.73900769]
[1763394443496,12.73900769,137.84,137.79,12.73900769]
[1763394443821,12.73900769,137.82,137.76,4.46]
[1763394444022,12.73900769,137.82,137.77,12.73900769]
[1763394444231,13.42900769,137.81,137.76,17.19900769]
[1763394444526,0.69,137.81,137.77,12.73900769]
[1763394444711,0.69,137.8,137.76,4.46]
[1763394444917,0.69,137.8,137.76,17.19900769]
[1763394445619,0.69,137.8,137.77,12.73900769]
[1763394445799,0.69,137.8,137.76,4.46]
[1763394446122,0.69,137.8,137.76,17.19900769]
[1763394446635,18.12096,137.83,137.77,12.73900769]
[1763394446816,0.69,137.8,137.77,12.73900769]
[1763394447230,0.69,137.8,137.76,4.46]
[1763394447604,0.69,137.8,137.77,12.73900769]
[1763394447806,12.73900769,137.82,137.77,12.73900769]
[1763394448007,18.12096,137.83,137.79,12.73900769]
[1763394448332,0.69,137.82,137.79,12.73900769]
[1763394448536,0.69,137.82,137.78,12.73900769]
[1763394449008,18.12096,137.83,137.78,12.73900769]
[1763394449208,18.81096,137.83,137.79,12.73900769]
[1763394449413,17.85411761,137.83,137.79,12.73900769]
[1763394449717,17.85411761,137.83,137.76,5.15]
[1763394449718,30.5931253,137.83,137.78,12.73900769]
[1763394449924,17.85411761,137.83,137.78,12.73900769]
[1763394450129,17.85411761,137.83,137.79,12.73900769]
[1763394450433,17.19900769,137.86,137.81,12.73900769]
[1763394450618,4.46,137.86,137.81,12.73900769]
[1763394450932,117.33900769,137.9,137.84,12.73900769]
[1763394451142,117.33900769,137.9,137.8,4.46]
[1763394451143,12.73900769,137.86,137.81,12.73900769]
[1763394451519,0.69,137.86,137.82,12.73900769]
[1763394451715,0.69,137.85,137.77,4.46]
[1763394451916,0.69,137.85,137.81,12.73900769]
[1763394452111,104.6,137.9,137.8,18.12096]
[1763394452321,4.46,137.96,137.89,12.73900769]
[1763394452511,4.46,137.96,137.83,18.12096]
[1763394452512,0.69,137.94,137.9,12.73900769]
[1763394452714,18.81096,137.94,137.86,4.46]
[1763394452931,12.73900769,137.92,137.86,12.73900769]
[1763394453139,17.19900769,137.96,137.9,12.73900769]
[1763394453428,0.69,137.97,137.93,12.73900769]
[1763394453638,18.12096,137.95,137.9,5.18]
[1763394453817,0.69,138.0,137.94,12.73900769]
[1763394454001,17.19900769,138.02,137.97,12.73900769]
[1763394454202,14.15558745,138.09,137.91,0.72]
[1763394454203,4.46,138.04,137.99,12.73900769]
[1763394454412,0.69,138.08,138.0,12.73900769]
[1763394454633,18.12096,138.04,138.0,12.73900769]
[1763394454830,18.81096,138.04,138.0,12.73900769]
[1763394455031,0.69,138.03,138.0,12.73900769]
[1763394455235,0.69,138.03,137.97,0.72]
[1763394455445,0.69,138.04,138.0,12.73900769]
[1763394456506,5.15,138.07,138.03,12.73900769]
[1763394456705,18.12096,138.06,137.98,4.46]
[1763394456937,0.69,138.05,138.01,12.73900769]
[1763394457143,18.12096,138.06,138.02,12.73900769]
[1763394457318,4.46,138.07,137.99,0.7]
[1763394457522,0.2,138.09,138.06,12.73900769]
[1763394457739,0.69,138.08,138.02,4.46]
[1763394457941,0.69,138.08,138.04,12.73900769]
[1763394458116,12.93900769,138.09,138.05,12.73900769]
[1763394458117,18.32096,138.09,138.05,12.73900769]
[1763394458312,0.2,138.09,138.05,12.73900769]
[1763394458514,0.89,138.09,138.06,12.73900769]
[1763394459025,13.42900769,138.08,138.03,12.73900769]
[1763394459418,0.2,138.09,138.05,12.73900769]
[1763394459619,0.2,138.09,138.06,0.7]
[1763394459932,0.2,138.15,138.08,12.73900769]
[1763394460139,0.2,138.15,138.13,12.73900769]
[1763394460338,13.62900769,138.15,138.09,12.73900769]
[1763394460516,0.2,138.15,138.11,12.73900769]
[1763394460720,0.2,138.15,138.14,12.73900769]
[1763394461229,0.2,138.15,138.1,0.7]
[1763394461440,0.2,138.15,138.14,12.73900769]
[1763394461747,0.89,138.15,138.11,12.73900769]
[1763394462049,12.73900769,138.14,138.08,12.73900769]
[1763394462230,31.54996769,138.14,138.09,12.73900769]
[1763394462426,0.69,138.13,138.09,12.73900769]
[1763394462949,0.69,138.13,138.07,4.46]
[1763394462950,13.62900769,138.15,138.1,12.73900769]
[1763394463316,0.69,138.14,138.1,12.73900769]
[1763394463518,0.69,138.14,138.07,5.16]
[1763394463720,0.69,138.14,138.1,12.73900769]
[1763394463920,0.69,138.14,138.09,12.73900769]
[1763394464148,12.73900769,138.12,138.07,12.73900769]
[1763394464447,12.73900769,138.12,138.04,5.14]
[1763394464645,13.42900769,138.11,138.04,4.44]
[1763394464950,18.81096,138.11,138.05,7.29419063]
[1763394465154,18.12096,138.11,138.06,7.29419063]
[1763394465330,25.41515063,138.11,138.06,7.29419063]
[1763394465532,0.69,138.1,138.04,4.44]
[1763394465851,7.98419063,138.1,138.05,7.29419063]
[1763394466028,18.12096,138.09,138.06,7.29419063]
[1763394466345,4.44,138.12,138.06,7.29419063]
[1763394466556,18.12096,138.11,138.07,7.29419063]
[1763394466738,18.12096,138.11,138.06,7.29419063]
[1763394466739,26.10515063,138.11,138.06,7.29419063]
[1763394467054,0.69,138.1,138.06,7.29419063]
[1763394467229,0.69,138.1,138.07,7.29419063]
[1763394467424,18.12096,138.08,138.01,4.44]
[1763394467749,7.98419063,138.07,138.02,7.29419063]
[1763394467923,0.69,138.07,138.03,7.29419063]
[1763394468127,7.98419063,138.07,138.02,7.29419063]
[1763394468352,0.69,138.07,137.99,4.44]
[1763394468566,7.98419063,138.06,138.0,7.29419063]
[1763394468846,22.56096,138.08,138.04,7.29419063]
[1763394469159,7.98419063,138.07,137.98,23.26096]
[1763394469325,0.69,138.07,138.03,7.29419063]
[1763394469724,0.69,138.07,138.04,7.29419063]
[1763394469939,0.69,138.07,138.0,0.7]
[1763394470137,0.69,138.07,138.03,7.29419063]
[1763394470334,7.98419063,138.07,138.02,7.29419063]
[1763394470528,22.56096,138.08,138.04,7.29419063]
[1763394470529,29.85515063,138.08,138.04,7.29419063]
[1763394470748,30.54515063,138.08,138.04,7.29419063]
[1763394470955,30.54515063,138.08,138.0,7.29419063]
[1763394470956,0.69,138.07,138.03,7.29419063]
[1763394471157,22.56096,138.08,138.04,7.29419063]
[1763394471460,30.54515063,138.08,138.03,7.29419063]
[1763394471867,7.98419063,138.07,138.02,7.29419063]
[1763394472033,7.98419063,138.07,138.0,0.7]
[1763394472034,18.12096,138.08,138.04,7.29419063]
[1763394472238,18.12096,138.08,138.0,7.99419063]
[1763394472447,18.12096,138.08,138.01,0.7]
[1763394472766,18.81096,138.08,138.01,0.7]
[1763394473582,18.12096,138.05,138.01,7.29419063]
[1763394473753,26.10515063,138.07,138.02,7.29419063]
[1763394473957,0.69,138.06,138.02,7.29419063]
[1763394474157,0.69,138.06,138.01,7.29419063]
[1763394474158,7.98419063,138.06,138.01,7.29419063]
[1763394474346,7.98419063,138.06,138.02,7.29419063]
[1763394474547,25.41515063,138.04,137.99,7.29419063]
[1763394474862,0.69,138.03,137.99,7.29419063]
[1763394475064,0.69,138.03,138.0,7.29419063]
[1763394475240,30.54515063,138.06,138.01,7.29419063]
[1763394475442,5.13,138.06,138.02,7.29419063]
[1763394475844,5.13,138.06,138.03,7.29419063]
[1763394475845,4.44,138.06,138.03,7.29419063]
[1763394476170,4.44,138.06,137.98,22.56096]
[1763394476171,7.29419063,138.1,138.05,7.29419063]
[1763394476363,0.69,138.11,138.08,7.29419063]
[1763394476541,7.29419063,138.13,138.03,14.22882769]
[1763394476743,7.29419063,138.11,138.03,5.14]
[1763394477070,7.29419063,138.09,138.05,7.29419063]
[1763394477568,7.29419063,138.06,137.99,4.44]
[1763394477776,28.59978769,138.08,138.0,7.29419063]
[1763394477777,26.10515063,138.08,138.0,7.29419063]
[1763394478070,7.98419063,138.07,137.99,5.14]
[1763394478367,7.29419063,138.06,138.01,7.29419063]
[1763394478578,0.69,138.11,138.05,7.29419063]
[1763394478780,9.78882769,138.1,138.02,18.12096]
[1763394479074,7.98419063,138.09,138.04,7.29419063]
[1763394479251,0.69,138.09,138.05,7.29419063]
[1763394479637,0.69,138.09,138.03,0.7]
[1763394479844,0.69,138.09,137.99,4.44]
[1763394479845,7.29419063,138.07,137.99,18.12096]
[1763394480151,7.29419063,138.08,138.03,7.29419063]
[1763394480349,26.10515063,138.1,138.01,9.78882769]
[1763394480545,7.98419063,138.09,138.04,7.29419063]
[1763394480776,0.69,138.09,138.05,7.29419063]
[1763394480959,0.69,138.09,138.06,7.29419063]
[1763394481280,18.12096,138.1,138.07,7.29419063]
[1763394481642,18.12096,138.1,138.01,14.22882769]
[1763394481643,0.69,138.09,138.01,4.44]
[1763394481873,7.29419063,138.06,137.99,0.7]
[1763394482074,7.29419063,138.06,138.01,7.29419063]
[1763394482261,25.41515063,138.04,137.96,4.44]
[1763394482456,7.29419063,138.02,137.97,7.29419063]
[1763394482658,7.29419063,138.02,137.96,4.44]
[1763394482847,7.98419063,138.01,137.96,11.73419063]
[1763394483050,0.69,138.01,137.96,7.29419063]
[1763394483248,18.12096,138.02,137.97,7.99419063]
[1763394483474,0.69,138.03,137.99,7.29419063]
[1763394484161,18.12096,138.05,138.0,7.99419063]
[1763394484473,7.98419063,138.06,138.0,7.99419063]
[1763394484474,0.69,138.06,138.0,0.7]
[1763394484648,0.69,138.06,138.02,7.29419063]
[1763394484849,7.98419063,138.06,138.01,7.29419063]
[1763394485160,18.12096,138.04,138.0,7.29419063]
[1763394485564,7.29419063,138.01,137.78,40.12667508]
[1763394485872,7.29419063,137.99,137.94,7.29419063]
[1763394486082,7.29419063,137.99,137.92,0.7]
[1763394486260,7.98419063,137.98,137.92,7.29419063]
[1763394486450,0.72,138.02,137.96,7.29419063]
[1763394486650,18.12096,138.0,137.97,7.29419063]
[1763394487061,18.84096,138.0,137.93,0.69]
[1763394487288,18.84096,138.0,137.94,7.29419063]
[1763394487289,17.80301832,137.99,137.94,7.29419063]
[1763394487652,0.72,137.99,137.96,7.29419063]
[1763394488251,0.72,138.02,137.98,7.29419063]
[1763394488471,0.72,138.1,138.01,7.29419063]
[1763394488680,0.72,138.08,138.05,7.29419063]
[1763394488854,18.84096,138.08,137.98,4.44]
[1763394489058,18.84096,138.07,138.05,7.29419063]
[1763394489256,18.84096,138.07,138.06,7.29419063]
[1763394489569,0.72,138.1,138.06,7.29419063]
[1763394489758,18.12096,138.09,138.07,7.29419063]
[1763394490090,0.72,138.1,138.08,7.29419063]
[1763394490757,0.72,138.1,138.06,7.29419063]
[1763394491101,18.12096,138.09,138.06,7.29419063]
[1763394491269,0.72,138.08,138.06,7.29419063]
[1763394491961,0.72,138.08,138.05,7.29419063]
[1763394492167,0.72,138.08,138.0,25.41515063]
[1763394492168,0.72,138.08,138.04,7.29419063]
[1763394492391,0.72,138.08,138.06,7.29419063]
[1763394493286,0.72,138.08,138.05,7.29419063]
[1763394494265,0.72,138.08,138.01,0.69]
[1763394494476,18.12096,138.07,138.0,7.29419063]
[1763394494669,18.12096,138.07,138.02,7.29419063]
[1763394494871,10.50882769,138.06,138.02,7.29419063]
[1763394495190,10.50882769,138.06,138.01,7.29419063]
[1763394495389,0.72,138.05,138.01,7.29419063]
[1763394495559,23.28096,138.08,138.04,7.29419063]
[1763394495758,23.28096,138.08,138.05,7.29419063]
[1763394495960,44.33251698,138.17,138.07,7.29419063]
[1763394495961,0.2,138.17,138.07,7.29419063]
[1763394496166,0.72,138.16,138.12,7.29419063]
[1763394496383,0.72,138.16,138.14,7.29419063]
[1763394496692,0.2,138.17,138.13,7.29419063]
[1763394496693,0.92,138.15,138.13,7.29419063]
[1763394496895,0.2,138.15,138.14,7.29419063]
[1763394497472,0.9,138.15,138.1,4.44]
[1763394497779,0.2,138.15,138.14,7.29419063]
[1763394497987,0.9,138.15,138.12,7.29419063]
[1763394498206,0.9,138.15,138.13,7.29419063]
[1763394498363,0.9,138.15,138.1,4.44]
[1763394498574,0.2,138.15,138.14,7.29419063]
[1763394498985,0.2,138.15,138.14,7.95419063]
[1763394499901,0.2,138.15,138.14,17.74301832]
[1763394500104,0.2,138.15,138.14,25.03720895]
[1763394500304,0.2,138.17,138.15,9.78882769]
[1763394500515,0.2,138.17,138.16,7.29419063]
[1763394500808,0.2,138.17,138.16,14.58838126]
[1763394501106,0.2,138.17,138.16,15.24838126]
[1763394501474,0.2,138.17,138.16,19.68838126]
[1763394501676,0.2,138.17,138.16,12.39419063]
[1763394501881,0.2,138.17,138.16,11.73419063]
[1763394502108,0.2,138.17,138.16,7.29419063]
[1763394502482,0.9,138.17,138.13,7.29419063]
[1763394502705,0.9,138.17,138.14,7.29419063]
[1763394502903,0.2,138.17,138.15,7.29419063]
[1763394503401,0.2,138.17,138.16,7.29419063]
[1763394503706,0.2,138.17,138.16,7.95419063]
[1763394503896,0.2,138.17,138.16,15.24838126]
[1763394504205,0.2,138.17,138.16,19.68838126]
[1763394504412,0.2,138.17,138.16,37.80934126]
[1763394505068,0.2,138.17,138.16,47.59816895]
[1763394505288,0.2,138.18,138.16,47.59816895]
[1763394505503,0.2,138.18,138.17,35.86397832]
[1763394505704,0.2,138.23,138.17,35.86397832]
[1763394506002,0.2,138.23,138.21,7.29419063]
[1763394506304,0.2,138.23,138.21,11.73419063]
[1763394506479,0.2,138.23,138.21,12.39419063]
[1763394507076,0.2,138.23,138.17,0.66]
[1763394507281,0.9,138.22,138.19,7.29419063]
[1763394507707,0.2,138.22,138.19,7.29419063]
[1763394507903,0.9,138.22,138.19,7.29419063]
[1763394508109,0.9,138.22,138.16,0.66]
[1763394508307,0.2,138.22,138.2,7.29419063]
[1763394508810,0.2,138.22,138.21,7.29419063]
[1763394509199,0.2,138.22,138.18,5.1]
[1763394509200,0.2,138.22,138.2,7.29419063]
[1763394509384,0.2,138.22,138.21,7.29419063]
[1763394510014,0.2,138.22,138.17,22.56096]
[1763394510185,0.2,138.22,138.21,7.29419063]
[1763394511422,0.2,138.22,138.21,7.95419063]
[1763394511624,0.2,138.22,138.21,17.74301832]
[1763394512195,0.2,138.28,138.24,18.12096]
[1763394512405,0.2,138.28,138.27,7.29419063]
[1763394512999,0.2,138.28,138.24,18.12096]
[1763394513323,0.2,138.28,138.23,4.44]
[1763394513324,0.2,138.28,138.27,7.29419063]
[1763394513885,0.2,138.28,138.2,0.66]
[1763394513886,0.9,138.28,138.2,0.66]
[1763394514103,0.9,138.28,138.27,7.29419063]
[1763394514104,0.2,138.28,138.27,7.29419063]
[1763394514506,0.2,138.28,138.27,11.73419063]
[1763394515210,0.9,138.28,138.27,4.44]
[1763394515407,8.19419063,138.28,138.18,9.78882769]
[1763394515589,0.7,138.27,138.22,7.29419063]
[1763394515786,0.7,138.27,138.24,7.29419063]
[1763394516138,0.7,138.27,138.25,7.29419063]
[1763394516292,0.7,138.27,138.23,7.29419063]
[1763394516494,0.7,138.27,138.25,7.29419063]
[1763394516801,0.7,138.27,138.22,7.29419063]
[1763394517001,7.99419063,138.27,138.21,7.29419063]
[1763394517191,17.08301832,138.26,138.18,4.44]
[1763394517396,0.72,138.26,138.21,7.29419063]
[1763394517593,0.72,138.25,138.22,7.29419063]
[1763394517796,0.72,138.25,138.23,7.29419063]
[1763394518307,0.72,138.25,138.22,7.29419063]
[1763394518494,25.41515063,138.24,138.15,14.22882769]
[1763394518702,9.78882769,138.21,138.11,0.66]
[1763394518924,25.41515063,138.21,138.15,7.29419063]
[1763394519097,18.12096,138.24,138.11,7.29419063]
[1763394519098,18.12096,138.17,138.11,7.29419063]
[1763394519295,0.72,138.16,138.08,7.95419063]
[1763394519596,0.72,138.16,138.11,7.29419063]
[1763394519789,0.72,138.16,138.12,7.29419063]
[1763394520222,0.72,138.16,138.07,22.56096]
[1763394520223,17.08301832,138.15,138.07,4.44]
[1763394520528,0.72,138.16,138.11,7.29419063]
[1763394520689,0.72,138.15,138.11,7.29419063]
[1763394521304,0.72,138.15,138.07,4.44]
[1763394521305,25.41515063,138.13,138.07,7.29419063]
[1763394521508,0.72,138.15,138.07,0.66]
[1763394521708,27.90978769,138.14,138.1,7.29419063]
[1763394521907,27.90978769,138.14,138.04,18.78096]
[1763394522101,0.72,138.13,138.09,7.29419063]
[1763394523139,7.29419063,138.11,138.01,0.66]
[1763394523436,18.12096,138.11,138.06,7.29419063]
[1763394523619,0.72,138.1,138.07,7.29419063]
[1763394523820,0.72,138.1,138.06,7.29419063]
[1763394525029,18.12096,138.07,138.0,11.73419063]
[1763394525238,18.12096,138.07,138.03,7.29419063]
[1763394525435,0.72,138.06,138.04,7.29419063]
[1763394525943,18.12096,138.09,138.05,7.29419063]
[1763394526146,18.12096,138.09,138.06,7.29419063]
[1763394526445,0.72,138.09,138.07,7.29419063]
[1763394526928,18.12096,138.11,138.07,12.69535955]
[1763394527134,0.72,138.09,138.07,12.69535955]
[1763394527510,0.72,138.09,138.06,12.69535955]
[1763394527715,27.90978769,138.08,138.0,22.56096]
[1763394527936,18.84096,138.09,138.04,12.69535955]
[1763394528140,0.72,138.08,138.04,12.69535955]
[1763394528339,10.50882769,138.08,138.03,12.69535955]
[1763394528548,30.81631955,138.06,138.0,12.69535955]
[1763394528841,18.12096,138.06,138.03,12.69535955]
[1763394529019,18.12096,138.06,137.99,0.66]
[1763394529220,26.92418724,138.09,138.01,12.69535955]
[1763394529221,0.72,138.05,138.01,12.69535955]